bitfinex-derivatives/quotes_SOLF0:USTF0_20251025
["timestamp","ask_amount","ask_price","bid_price","bid_amount"]
[1761405225528,3.98288176,192.03,191.96,2.77]
[1761405225728,3.98288176,192.02,191.95,1.20861525]
[1761405226023,8.82330663,192.01,191.92,2.77]
[1761405226220,3.98288176,192.0,191.92,2.77]
[1761405226418,3.98288176,191.99,191.92,2.77]
[1761405226622,3.98288176,191.98,191.92,2.77]
[1761405226928,3.98288176,191.97,191.92,2.77]
[1761405227124,4.84042487,192.01,191.92,2.77]
[1761405227322,8.82207951,192.0,191.92,2.77]
[1761405227517,3.98165464,191.99,191.92,2.77]
[1761405227723,3.98165464,191.98,191.92,2.77]
[1761405228028,3.98165464,191.97,191.92,2.77]
[1761405228230,3.98165464,191.96,191.92,2.77]
[1761405228424,4.84042487,192.0,191.92,2.77]
[1761405228625,3.98281118,191.99,191.92,2.77]
[1761405228821,3.98281118,191.98,191.92,2.77]
[1761405229128,3.98281118,191.97,191.92,2.77]
[1761405229330,3.98281118,191.96,191.92,2.77]
[1761405229532,4.84042487,192.0,191.92,2.77]
[1761405229730,3.98268673,191.99,191.92,2.77]
[1761405229931,3.98268673,191.98,191.92,2.77]
[1761405230131,3.98268673,191.97,191.92,2.77]
[1761405230334,3.98268673,191.96,191.92,2.77]
[1761405230632,4.84042487,192.0,191.92,2.77]
[1761405230930,3.98278756,191.99,191.92,2.77]
[1761405231127,3.98278756,191.98,191.92,2.77]
[1761405231436,3.98278756,191.97,191.92,2.77]
[1761405231626,3.98278756,191.96,191.92,2.77]
[1761405231826,3.98278756,191.95,191.92,2.77]
[1761405232131,3.98278756,191.94,191.92,2.77]
[1761405232333,3.98278756,191.93,191.92,2.77]
[1761405241739,4.84042487,192.01,191.92,2.77]
[1761405241937,4.37062255,192.0,191.93,1.88953344]
[1761405242134,4.37062255,191.99,191.94,2.69]
[1761405242336,4.37062255,191.98,191.94,2.69]
[1761405242540,4.37062255,191.97,191.94,2.69]
[1761405242741,4.37062255,191.96,191.94,2.69]
[1761405242941,4.37062255,191.95,191.94,2.69]
[1761405249458,4.37062255,191.95,191.92,2.79]
[1761405249659,4.37062255,191.94,191.92,2.79]
[1761405249860,4.37062255,191.93,191.92,2.79]
[1761405253664,4.37062255,191.93,191.92,65.69]
[1761405256164,4.84042487,192.01,191.92,65.69]
[1761405256358,4.37019117,192.0,191.93,2.79]
[1761405256553,4.84042487,192.01,191.93,2.79]
[1761405264172,9.30555175,192.02,191.93,2.79]
[1761405264372,4.84042487,192.02,191.93,2.79]
[1761405265174,9.30563896,192.02,191.93,2.79]
[1761405265376,4.84042487,192.02,191.93,2.79]
[1761405266268,4.84042487,192.01,191.93,2.79]
[1761405266470,9.3057265,192.01,191.93,2.79]
[1761405266665,4.84042487,192.01,191.93,2.79]
[1761405267462,9.30578617,192.01,191.93,2.79]
[1761405267662,4.84042487,192.01,191.93,2.79]
[1761405268365,4.3368232,192.0,191.93,2.79]
[1761405268569,4.3368232,191.99,191.93,2.79]
[1761405268873,4.3368232,191.98,191.93,2.79]
[1761405269073,4.3368232,191.97,191.93,2.79]
[1761405269372,4.3368232,191.96,191.93,2.79]
[1761405269561,4.3368232,191.95,191.93,2.79]
[1761405269762,4.3368232,191.94,191.93,2.79]
[1761405271077,4.84042487,192.0,191.93,2.79]
[1761405271277,4.33823207,191.99,191.93,2.79]
[1761405271465,4.84042487,192.01,191.93,2.79]
[1761405272364,9.33584614,192.01,191.93,2.79]
[1761405272564,4.84042487,192.01,191.93,2.79]
[1761405273376,9.33592099,192.01,191.93,2.79]
[1761405273576,4.84042487,192.01,191.93,2.79]
[1761405274571,9.33613433,192.01,191.93,2.79]
[1761405274776,4.84042487,192.01,191.93,2.79]
[1761405275574,9.33637821,192.01,191.93,2.79]
[1761405275879,4.84042487,192.01,191.93,2.79]
[1761405276877,9.33665274,192.01,191.93,2.79]
[1761405277077,4.84042487,192.01,191.93,2.79]
[1761405277974,9.33735009,192.01,191.93,2.79]
[1761405278278,4.84042487,192.01,191.93,2.79]
[1761405279079,9.33761629,192.01,191.93,2.79]
[1761405279278,4.84042487,192.01,191.93,2.79]
[1761405280083,9.33788437,192.01,191.93,2.79]
[1761405280382,4.84042487,192.01,191.93,2.79]
[1761405281269,9.33819692,192.01,191.93,2.79]
[1761405281474,4.84042487,192.01,191.93,2.79]
[1761405282276,9.33856762,192.01,191.93,2.79]
[1761405282484,4.84042487,192.01,191.93,2.79]
[1761405283172,4.32162651,192.0,191.93,2.79]
[1761405283477,4.32162651,191.99,191.93,2.79]
[1761405283673,4.32162651,191.98,191.93,2.79]
[1761405283984,4.32162651,191.97,191.93,2.79]
[1761405284184,4.32162651,191.96,191.93,2.79]
[1761405284384,4.32162651,191.95,191.93,2.79]
[1761405284581,4.32162651,191.94,191.93,2.79]
[1761405291386,1e-08,191.94,191.93,2.79]
[1761405298697,1e-08,191.94,191.93,3.99897368]
[1761405300396,9.34637182,192.02,191.94,2.86]
[1761405300596,9.34637182,192.01,191.95,62.88]
[1761405300791,4.84042487,192.01,191.95,62.88]
[1761405300994,4.84042487,192.01,191.95,65.74]
[1761405301197,4.84042487,192.02,191.95,65.74]
[1761405301397,4.50590145,192.01,191.95,65.74]
[1761405304403,4.84042487,192.02,191.95,65.74]
[1761405304605,4.50628383,192.01,191.95,65.74]
[1761405305306,4.84042487,192.02,191.95,65.74]
[1761405305605,4.50620792,192.01,191.95,65.74]
[1761405305799,4.84042487,192.02,191.95,65.74]
[1761405305999,4.50722465,192.01,191.95,65.74]
[1761405306200,4.84042487,192.02,191.95,65.74]
[1761405306400,4.50769491,192.01,191.95,65.74]
[1761405306597,4.84042487,192.02,191.96,2.86]
[1761405306901,4.5079212,192.01,191.96,2.86]
[1761405307203,4.84042487,192.02,191.96,2.86]
[1761405307403,4.50886015,192.01,191.96,2.86]
[1761405307603,4.84042487,192.02,191.96,2.86]
[1761405307804,4.5088638,192.01,191.96,2.86]
[1761405308002,4.84042487,192.02,191.96,2.86]
[1761405308506,4.84042487,192.03,191.96,2.86]
[1761405308699,4.50889616,192.02,191.96,2.86]
[1761405308905,4.84042487,192.03,191.96,2.86]
[1761405309105,4.50911825,192.02,191.96,2.86]
[1761405309303,4.84042487,192.03,191.96,2.86]
[1761405309506,4.50922435,192.02,191.96,2.86]
[1761405309707,4.84042487,192.03,191.96,2.86]
[1761405309905,4.50922435,192.02,191.96,2.86]
[1761405310105,4.84042487,192.03,191.96,2.86]
[1761405310304,4.5092177,192.02,191.96,2.86]
[1761405310505,4.84042487,192.03,191.96,2.86]
[1761405310705,4.50911765,192.02,191.96,2.86]
[1761405310908,4.84042487,192.03,191.96,2.86]
[1761405311108,4.51043114,192.02,191.96,2.86]
[1761405311301,4.84042487,192.03,191.96,2.86]
[1761405311495,4.51057651,192.02,191.96,2.86]
[1761405311700,4.84042487,192.03,191.96,2.86]
[1761405311900,4.51057784,192.02,191.98,2.89]
[1761405312105,4.51057784,192.03,191.98,2.89]
[1761405312407,8.64851121,192.02,191.98,2.89]
[1761405312607,4.13793337,192.01,191.98,2.89]
[1761405312906,4.13793337,192.0,191.98,2.89]
[1761405313206,4.13793337,191.99,191.98,2.89]
[1761405316809,4.50920864,192.03,191.98,2.89]
[1761405317016,4.50920864,192.04,192.02,2.89]
[1761405317310,4.50920864,192.03,192.02,2.89]
[1761405317503,4.50920864,192.04,192.02,2.89]
[1761405317703,4.50920864,192.03,192.02,2.89]
[1761405317903,4.50920864,192.04,192.02,2.89]
[1761405318104,4.50920864,192.03,192.02,2.89]
[1761405318304,4.50920864,192.04,192.02,2.89]
[1761405318599,4.50920864,192.03,192.02,2.89]
[1761405318806,4.50920864,192.04,192.02,2.89]
[1761405319313,7.62116291,192.05,192.02,2.89]
[1761405319508,4.50920864,192.04,192.02,2.89]
[1761405321514,7.62036889,192.06,192.02,2.89]
[1761405321710,4.50920864,192.05,191.9,4.6893]
[1761405321917,4.50920864,192.04,192.0,2.89]
[1761405322118,4.50920864,192.03,192.0,2.89]
[1761405322319,4.50920864,192.04,192.0,2.89]
[1761405322513,4.50920864,192.03,192.0,2.89]
[1761405322709,4.50920864,192.04,192.0,2.89]
[1761405322911,4.50920864,192.03,192.0,2.89]
[1761405323217,4.50920864,192.04,192.0,2.89]
[1761405323612,7.62109211,192.06,192.0,2.89]
[1761405323811,4.50920864,192.05,192.0,2.89]
[1761405324019,4.50920864,192.04,192.0,2.89]
[1761405324214,4.50920864,192.05,192.0,2.89]
[1761405324417,4.50920864,192.04,192.0,2.89]
[1761405324718,4.50920864,192.05,192.0,2.89]
[1761405324906,4.50920864,192.04,192.0,2.89]
[1761405325106,4.50920864,192.05,192.0,2.89]
[1761405325318,4.50920864,192.04,192.0,2.89]
[1761405325618,4.50920864,192.05,192.0,2.89]
[1761405325812,4.50920864,192.04,192.0,2.89]
[1761405326110,4.50920864,192.05,192.0,2.89]
[1761405326311,4.50920864,192.04,192.0,2.89]
[1761405326518,4.50920864,192.05,192.0,2.89]
[1761405326717,4.50920864,192.04,192.0,2.89]
[1761405327017,4.50920864,192.03,192.0,2.89]
[1761405327216,4.50920864,192.05,192.0,2.89]
[1761405327416,4.50920864,192.04,192.0,2.89]
[1761405327618,4.50920864,192.03,192.0,2.89]
[1761405327818,4.50920864,192.05,192.0,2.89]
[1761405328010,4.50920864,192.04,192.0,2.89]
[1761405328211,4.50920864,192.03,192.0,2.89]
[1761405328506,4.50920864,192.05,192.0,2.89]
[1761405328708,4.50920864,192.04,192.0,2.89]
[1761405328919,8.50916063,192.03,192.0,2.89]
[1761405329119,3.99995199,192.02,192.0,2.89]
[1761405329419,3.99995199,192.01,192.0,2.89]
[1761405330719,3.99992129,192.01,192.0,2.89]
[1761405344536,3.99992129,192.01,191.97,2.66]
[1761405344826,3.99992129,192.0,191.97,2.66]
[1761405345026,4.56922369,192.04,191.97,2.66]
[1761405345226,4.0009867,192.03,191.97,2.66]
[1761405345430,4.0009867,192.02,191.97,2.66]
[1761405345629,4.0009867,192.01,191.97,2.66]
[1761405345826,4.0009867,192.0,191.97,2.66]
[1761405346025,7.66883576,192.06,191.97,2.66]
[1761405346225,8.5699711,192.05,191.97,2.66]
[1761405346426,8.5699711,192.04,191.97,2.66]
[1761405346729,4.00098678,192.03,191.97,2.66]
[1761405346930,4.00098678,192.02,191.97,2.66]
[1761405347126,4.00098678,192.01,191.97,2.66]
[1761405347325,4.00098678,192.0,191.97,2.66]
[1761405347526,4.56919529,192.04,191.97,2.66]
[1761405347825,4.00129174,192.03,191.97,2.66]
[1761405348029,4.00129174,192.02,191.97,2.66]
[1761405348231,4.00129174,192.01,191.97,2.66]
[1761405348429,4.00129174,192.0,191.97,2.66]
[1761405348628,4.85223922,192.08,191.97,2.66]
[1761405348834,8.57087701,192.07,191.97,2.66]
[1761405349132,11.67117809,192.06,191.97,2.66]
[1761405349434,8.57087701,192.05,191.97,2.66]
[1761405349634,8.57087701,192.04,191.97,2.66]
[1761405349928,4.00140917,192.03,191.97,2.66]
[1761405350134,4.00140917,192.02,191.97,2.66]
[1761405350335,4.00140917,192.01,191.97,2.66]
[1761405350532,4.00140917,192.0,191.97,2.66]
[1761405350734,4.5697019,192.04,191.97,2.66]
[1761405350935,4.001734,192.03,191.97,2.66]
[1761405351135,4.001734,192.02,191.97,2.66]
[1761405351436,4.85223922,192.08,191.97,2.66]
[1761405351437,4.001734,192.01,191.97,2.66]
[1761405351637,4.001734,192.0,191.97,2.66]
[1761405351934,6.0612129,192.09,191.97,2.66]
[1761405352128,8.57938662,192.08,191.97,2.66]
[1761405352437,8.57938662,192.07,191.97,2.66]
[1761405352635,8.57938662,192.06,191.97,2.66]
[1761405352936,4.00898986,192.05,191.97,2.66]
[1761405353240,4.00898986,192.04,191.97,2.66]
[1761405353535,4.00898986,192.03,191.97,2.66]
[1761405353733,4.00898986,192.02,191.97,2.66]
[1761405354033,6.0612129,192.09,191.97,2.66]
[1761405354235,8.57843897,192.08,191.97,2.66]
[1761405354431,8.57843897,192.07,191.97,2.66]
[1761405354631,8.57843897,192.06,191.97,2.66]
[1761405354831,4.00856171,192.05,191.97,2.66]
[1761405355033,4.00856171,192.04,191.97,2.66]
[1761405355333,4.00856171,192.03,191.97,2.66]
[1761405355535,4.00856171,192.02,191.97,2.66]
[1761405355835,4.56980951,192.06,191.97,2.66]
[1761405356035,4.00857065,192.05,191.97,2.66]
[1761405356223,4.00857065,192.04,191.97,2.66]
[1761405356424,4.00857065,192.03,191.97,2.66]
[1761405356628,4.00857065,192.02,191.97,2.66]
[1761405356827,6.0612129,192.1,191.97,2.66]
[1761405357038,8.6076655,192.09,191.97,2.66]
[1761405357237,11.70049517,192.08,191.97,2.66]
[1761405357438,8.6076655,192.07,191.97,2.66]
[1761405357638,8.6076655,192.06,191.97,2.66]
[1761405357841,4.00844674,192.05,191.97,2.66]
[1761405358038,4.00844674,192.04,191.97,2.66]
[1761405358239,4.00844674,192.03,191.97,2.66]
[1761405358440,4.00844674,192.02,191.97,2.66]
[1761405358638,4.59900797,192.06,191.97,2.66]
[1761405358840,8.6070477,192.05,191.97,2.66]
[1761405359041,4.00803973,192.04,191.97,2.66]
[1761405359342,4.00803973,192.03,191.97,2.66]
[1761405359641,4.00803973,192.02,191.97,2.66]
[1761405359840,4.59880704,192.06,191.97,2.66]
[1761405360136,8.60686779,192.05,191.97,2.66]
[1761405360444,8.60674569,192.04,191.97,2.66]
[1761405360742,4.00806075,192.03,191.97,2.66]
[1761405360938,4.00806075,192.02,191.97,2.66]
[1761405361139,4.00806075,192.01,191.97,2.66]
[1761405361442,4.59868424,192.05,191.94,65.68]
[1761405361636,8.60672882,192.04,191.95,2.86]
[1761405361840,4.00804458,192.03,191.95,2.86]
[1761405362143,4.00804458,192.02,191.95,2.86]
[1761405362341,4.00804458,192.01,191.95,2.86]
[1761405362542,4.59880411,192.05,191.95,2.86]
[1761405362841,8.60688754,192.04,191.95,2.86]
[1761405363041,4.00808343,192.03,191.95,2.86]
[1761405363343,4.00808343,192.02,191.95,2.86]
[1761405363541,4.00808343,192.01,191.95,2.86]
[1761405363743,4.59885082,192.05,191.95,2.86]
[1761405363944,8.60698314,192.04,191.95,2.86]
[1761405364143,3.09224992,192.07,191.95,2.86]
[1761405364144,4.00813232,192.03,191.95,2.86]
[1761405364339,4.00813232,192.02,191.95,2.86]
[1761405364538,4.00813232,192.01,191.95,2.86]
[1761405364738,4.59890679,192.05,191.95,2.86]
[1761405364939,8.60724361,192.04,191.95,2.86]
[1761405365141,4.00833682,192.03,191.95,2.86]
[1761405365341,4.00833682,192.02,191.95,2.86]
[1761405365542,4.00833682,192.01,191.95,2.86]
[1761405365841,4.59908152,192.05,191.95,2.86]
[1761405366042,8.60742605,192.04,191.95,2.86]
[1761405366241,4.00834453,192.03,191.95,2.86]
[1761405366443,4.00834453,192.02,191.95,2.86]
[1761405366640,4.00834453,192.01,191.95,2.86]
[1761405366839,4.59916264,192.05,191.95,2.86]
[1761405367050,8.60751838,192.04,191.95,2.86]
[1761405367247,4.00835574,192.03,191.95,2.86]
[1761405367447,4.00835574,192.02,191.95,2.86]
[1761405367648,4.00835574,192.01,191.95,2.86]
[1761405367844,4.59927986,192.05,191.95,2.86]
[1761405368049,8.60797475,192.04,191.95,2.86]
[1761405368242,4.00869489,192.03,191.95,2.86]
[1761405368550,4.00869489,192.02,191.95,2.86]
[1761405368748,4.00869489,192.01,191.95,2.86]
[1761405368942,4.60010673,192.05,191.95,2.86]
[1761405369137,8.60888613,192.04,191.95,2.86]
[1761405369348,4.0087794,192.03,191.95,2.86]
[1761405369548,4.0087794,192.02,191.95,2.86]
[1761405369749,4.0087794,192.01,191.95,2.86]
[1761405369951,4.59953675,192.05,191.95,2.86]
[1761405370141,8.60821625,192.04,191.95,2.86]
[1761405370345,4.0086795,192.03,191.95,2.86]
[1761405370544,4.0086795,192.02,191.95,2.86]
[1761405370843,4.0086795,192.01,191.95,2.86]
[1761405371157,4.00883966,192.0,191.95,2.86]
[1761405371455,4.59965891,192.04,191.95,2.86]
[1761405371657,4.00890396,192.03,191.95,2.86]
[1761405371955,4.00890396,192.02,191.95,2.86]
[1761405372153,4.00890396,192.01,191.95,2.86]
[1761405372452,4.00890396,192.0,191.95,2.86]
[1761405372652,4.85223922,192.08,191.95,2.86]
[1761405372854,8.60897437,192.07,191.95,2.86]
[1761405373051,8.60897437,192.06,191.95,2.86]
[1761405373252,8.60897437,192.05,191.95,2.86]
[1761405373454,8.60897437,192.04,191.95,2.86]
[1761405373655,4.00903274,192.03,191.95,2.86]
[1761405373855,4.00903274,192.02,191.95,2.86]
[1761405374154,4.00903274,192.01,191.95,2.86]
[1761405374354,4.59812985,192.05,191.95,2.86]
[1761405374656,4.00721606,192.04,191.95,2.86]
[1761405374850,4.00721606,192.03,191.95,2.86]
[1761405375155,4.00721606,192.02,191.95,2.86]
[1761405375351,4.00721606,192.01,191.95,2.86]
[1761405375556,4.85223922,192.09,191.95,2.86]
[1761405375856,8.60569209,192.08,191.95,2.86]
[1761405376045,11.69757261,192.07,191.95,2.86]
[1761405376249,8.60569209,192.06,191.95,2.86]
[1761405376453,8.60569209,192.05,191.95,2.86]
[1761405376650,4.00752911,192.04,191.95,2.86]
[1761405376851,4.00752911,192.03,191.95,2.86]
[1761405377150,4.00752911,192.02,191.95,2.86]
[1761405377351,4.85223922,192.08,191.95,2.86]
[1761405377352,4.00752911,192.01,191.95,2.86]
[1761405377549,4.85223922,192.08,191.95,2.86]
[1761405377758,8.6061975,192.07,191.95,2.86]
[1761405377958,8.6061975,192.06,191.95,2.86]
[1761405378158,8.6061975,192.05,191.95,2.86]
[1761405378458,4.00776456,192.04,191.95,2.86]
[1761405378658,4.00776456,192.03,191.95,2.86]
[1761405378859,4.00776456,192.02,191.95,2.86]
[1761405379058,4.00776456,192.01,191.95,2.86]
[1761405379258,4.85223922,192.09,191.95,2.86]
[1761405379458,8.60661162,192.08,191.95,2.86]
[1761405379661,8.60661162,192.07,191.95,2.86]
[1761405379959,8.60661162,192.06,191.95,2.86]
[1761405380261,8.60661162,192.05,191.95,2.86]
[1761405380563,4.00798005,192.04,191.95,2.86]
[1761405380762,4.00798005,192.03,191.95,2.86]
[1761405380963,4.00798005,192.02,191.95,2.86]
[1761405381165,4.59870307,192.06,191.95,2.86]
[1761405381366,8.56379516,192.05,191.95,2.86]
[1761405381566,3.96509209,192.04,191.95,2.86]
[1761405381864,3.96509209,192.03,191.95,2.86]
[1761405382061,3.96509209,192.02,191.95,2.86]
[1761405382266,4.59879657,192.06,191.95,2.86]
[1761405382464,8.56398435,192.05,191.95,2.86]
[1761405382663,3.96518778,192.04,191.95,2.86]
[1761405382863,3.96518778,192.03,191.95,2.86]
[1761405383064,3.96518778,192.02,191.95,2.86]
[1761405383263,4.59891296,192.06,191.95,2.86]
[1761405383465,8.56422144,192.05,191.95,2.86]
[1761405383658,3.96530848,192.04,191.95,2.86]
[1761405383964,3.96530848,192.03,191.95,2.86]
[1761405384169,3.96530848,192.02,191.95,2.86]
[1761405384364,4.59921182,192.06,191.95,2.86]
[1761405384559,3.96545226,192.05,191.95,2.86]
[1761405384762,3.96545226,192.04,191.95,2.86]
[1761405384964,3.96545226,192.03,191.95,2.86]
[1761405385164,3.96545226,192.02,191.95,2.86]
[1761405385370,4.85223922,192.09,191.95,2.86]
[1761405385563,3.96673684,192.08,191.95,2.86]
[1761405385763,3.96673684,192.07,191.95,2.86]
[1761405385966,3.96673684,192.06,191.95,2.86]
[1761405386168,3.96673684,192.05,191.95,2.86]
[1761405386469,3.96673684,192.04,191.95,2.86]
[1761405386665,3.96673684,192.03,191.95,2.86]
[1761405386867,3.96673684,192.02,191.95,2.86]
[1761405387064,3.96673684,192.01,191.95,2.86]
[1761405387269,7.68295859,192.08,191.95,2.86]
[1761405387567,8.56838383,192.07,191.95,2.86]
[1761405387767,8.56838383,192.06,191.95,2.86]
[1761405388060,8.56838383,192.05,191.95,2.86]
[1761405388264,3.96707923,192.04,191.95,2.86]
[1761405388465,3.96707923,192.03,191.95,2.86]
[1761405388673,3.96707923,192.02,191.95,2.86]
[1761405388873,4.58388311,192.06,191.95,2.86]
[1761405389062,8.55146273,192.05,191.95,2.86]
[1761405389265,3.96757962,192.04,191.95,2.86]
[1761405389567,3.96757962,192.03,191.95,2.86]
[1761405389773,3.96757962,192.02,191.95,2.86]
[1761405389972,4.58387105,192.06,191.95,2.86]
[1761405390271,3.96774587,192.05,191.95,2.86]
[1761405390472,3.96774587,192.04,191.95,2.86]
[1761405390660,3.96774587,192.03,191.95,2.86]
[1761405390859,3.96774587,192.02,191.95,2.86]
[1761405391064,4.85223922,192.1,191.95,2.86]
[1761405391262,8.55304902,192.09,191.95,2.86]
[1761405391466,11.63588178,192.08,191.95,2.86]
[1761405391667,8.55304902,192.07,191.95,2.86]
[1761405391867,8.55304902,192.06,191.95,2.86]
[1761405392068,3.9684965,192.05,191.95,2.86]
[1761405392267,3.9684965,192.04,191.95,2.86]
[1761405392472,3.9684965,192.03,191.95,2.86]
[1761405392678,3.9684965,192.02,191.95,2.86]
[1761405392877,4.58507029,192.06,191.95,2.86]
[1761405393179,3.96870929,192.05,191.95,2.86]
[1761405393378,3.96870929,192.04,191.95,2.86]
[1761405393580,3.96870929,192.03,191.95,2.86]
[1761405393787,4.58544174,192.06,191.95,2.86]
[1761405394079,3.96917757,192.05,191.95,2.86]
[1761405394379,3.96917757,192.04,191.95,2.86]
[1761405394566,3.96917757,192.03,191.95,2.86]
[1761405394770,4.58549982,192.06,191.95,2.86]
[1761405394967,3.96907561,192.05,191.95,2.86]
[1761405395180,3.96907561,192.04,191.95,2.86]
[1761405395379,1.88879043,192.13,191.95,2.86]
[1761405395380,3.96907561,192.03,191.95,2.86]
[1761405395678,4.58536726,192.06,191.95,2.86]
[1761405395876,3.96890687,192.05,191.95,2.86]
[1761405396077,3.96890687,192.04,191.95,2.86]
[1761405396278,3.96890687,192.03,191.95,2.86]
[1761405396477,4.58536726,192.07,191.95,2.86]
[1761405396680,8.55413869,192.06,191.95,2.86]
[1761405396876,3.96877143,192.05,191.95,2.86]
[1761405397083,3.96877143,192.04,191.95,2.86]
[1761405397283,3.96877143,192.03,191.95,2.86]
[1761405397582,4.58494716,192.08,191.95,2.86]
[1761405397782,8.55356729,192.07,191.95,2.86]
[1761405398080,8.55356729,192.06,191.95,2.86]
[1761405398280,3.96862013,192.05,191.95,2.86]
[1761405398484,3.96862013,192.04,191.95,2.86]
[1761405398679,3.96862013,192.03,191.95,2.86]
[1761405398880,4.58455706,192.07,191.95,2.86]
[1761405399078,8.5525219,192.06,191.95,2.86]
[1761405399279,3.96796484,192.05,191.95,2.86]
[1761405399481,3.96796484,192.04,191.95,2.86]
[1761405399675,3.96796484,192.03,191.95,2.86]
[1761405399871,4.58402436,192.07,191.95,2.86]
[1761405400071,8.55192277,192.06,191.95,2.86]
[1761405400280,3.96789841,192.05,191.95,2.86]
[1761405400579,3.96789841,192.04,191.95,2.86]
[1761405400780,3.96789841,192.03,191.95,2.86]
[1761405401084,4.58394634,192.07,191.95,2.86]
[1761405401285,8.55174743,192.06,191.95,2.86]
[1761405401582,3.96780109,192.05,191.95,2.86]
[1761405401784,3.96780109,192.04,191.95,2.86]
[1761405401982,3.96780109,192.03,191.95,2.86]
[1761405402183,4.58367037,192.07,191.95,2.86]
[1761405402376,8.55120693,192.06,191.95,2.86]
[1761405402577,3.96753656,192.05,191.95,2.86]
[1761405402773,3.96753656,192.04,191.95,2.86]
[1761405402984,3.96753656,192.03,191.95,2.86]
[1761405403285,4.58359618,192.07,191.95,2.86]
[1761405403484,8.55071174,192.06,191.95,2.86]
[1761405403681,3.96711556,192.05,191.95,2.86]
[1761405403882,3.96711556,192.04,191.95,2.86]
[1761405404185,4.85223922,192.1,191.95,2.86]
[1761405404186,3.96711556,192.03,191.95,2.86]
[1761405404485,4.583107,192.07,191.95,2.86]
[1761405404677,8.55014245,192.06,191.95,2.86]
[1761405404873,3.96703545,192.05,191.95,2.86]
[1761405405074,3.96703545,192.04,191.95,2.86]
[1761405405283,3.96703545,192.03,191.95,2.86]
[1761405405484,4.58301085,192.07,191.95,2.86]
[1761405405684,8.55003171,192.06,191.95,2.86]
[1761405405887,3.96702086,192.05,191.95,2.86]
[1761405406087,3.96702086,192.04,191.95,2.86]
[1761405406289,3.96702086,192.03,191.95,2.86]
[1761405406489,17.85131403,192.13,191.94,64.70879043]
[1761405406490,4.85223922,192.13,191.96,2.68]
[1761405406687,8.55051548,192.12,191.96,2.68]
[1761405406986,11.63300385,192.11,191.96,2.68]
[1761405407183,8.55051548,192.1,191.96,2.68]
[1761405407388,8.55051548,192.09,191.96,2.68]
[1761405407687,4.85223922,192.13,191.96,2.68]
[1761405407688,3.96736737,192.08,191.96,2.68]
[1761405407882,3.96736737,192.07,191.96,2.68]
[1761405408083,3.96736737,192.06,191.99,2.68]
[1761405408389,4.58233197,192.1,191.99,2.68]
[1761405408683,3.96584254,192.09,191.99,2.68]
[1761405408887,3.96584254,192.08,191.99,2.68]
[1761405409083,3.96584254,192.07,192.0,2.68]
[1761405409287,3.96584254,192.07,191.99,4.687]
[1761405409288,4.58233197,192.1,192.02,2.68]
[1761405409588,3.96499608,192.09,192.02,2.68]
[1761405409780,3.96499608,192.08,192.02,2.68]
[1761405409980,3.96499608,192.07,192.02,2.68]
[1761405410182,4.58233197,192.1,192.02,2.68]
[1761405410386,4.85223922,192.14,192.02,2.68]
[1761405410387,3.96429634,192.09,192.02,2.68]
[1761405410586,3.96429634,192.08,192.02,2.68]
[1761405410787,3.96429634,192.07,192.02,2.68]
[1761405410988,4.58233197,192.1,192.02,2.68]
[1761405411186,3.96410102,192.09,192.02,2.68]
[1761405411386,3.96410102,192.08,192.02,2.68]
[1761405411588,3.96410102,192.07,192.02,2.68]
[1761405411787,4.58233197,192.1,192.02,2.68]